bitfinex-derivatives/quotes_ETHF0:USTF0_20250314
["timestamp","ask_amount","ask_price","bid_price","bid_amount"]
[1741977876200,3.2078,1938.3,1938.2,1.03186]
[1741977876406,1.03186,1938.2,1938.1,1.03189]
[1741977876801,1.03186,1938.2,1937.7,5.7881]
[1741977876802,1.03179,1938.4,1938.3,1.03181]
[1741977876994,1.03178,1938.4,1938.3,1.03179]
[1741977877309,4.24726914,1938.5,1938.4,1.03175]
[1741977877606,1.03176,1938.4,1938.3,1.03181]
[1741977877804,1.03181,1938.3,1938.2,1.3953]
[1741977878802,1.03181,1938.3,1938.2,2.42716]
[1741977879004,2.39599,1938.4,1938.3,1.03181]
[1741977879304,2.39599,1938.4,1938.3,1.3953]
[1741977880604,2.39599,1938.4,1938.3,2.42711]
[1741977881506,2.39599,1938.4,1938.3,1.3953]
[1741977881707,2.39599,1938.4,1938.3,2.42711]
[1741977881903,0.00773914,1938.5,1938.4,1.03175]
[1741977882209,1.03943914,1938.5,1938.4,1.3932]
[1741977882409,1.03943914,1938.5,1938.4,2.42495]
[1741977883107,0.00773914,1938.5,1938.4,2.42495]
[1741977883502,1.03943914,1938.5,1938.4,2.42495]
[1741977883703,0.00773914,1938.5,1938.4,2.42495]
[1741977885513,1.03157,1938.8,1938.4,5.63275]
[1741977885708,2.37267,1938.8,1938.5,6.3494]
[1741977885913,2.37267,1938.8,1938.6,2.4358]
[1741977886212,1.3411,1938.7,1938.6,1.0316]
[1741977886708,2.37269,1938.7,1938.6,1.03165]
[1741977887009,1.3411,1938.7,1938.6,1.03165]
[1741977889216,2.37269,1938.7,1938.6,1.03165]
[1741977889514,1.3411,1938.7,1938.6,1.03165]
[1741977890108,5.78598,1939.4,1939.0,1.03141]
[1741977890306,1.03135,1939.2,1939.1,1.03137]
[1741977890612,1.4493,1939.3,1938.9,1.3943]
[1741977890806,2.4806,1939.3,1939.2,1.03133]
[1741977891010,2.4806,1939.3,1939.1,1.03134]
[1741977891011,1.03133,1939.2,1939.1,1.03134]
[1741977891212,2.48833914,1939.3,1939.2,1.03133]
[1741977891507,1.03133,1939.2,1939.1,1.03134]
[1741977891714,2.48063,1939.2,1939.1,1.03134]
[1741977892109,1.03142,1939.1,1939.0,1.03142]
[1741977892416,2.48072,1939.1,1939.0,1.03142]
[1741977893315,1.03136,1939.2,1939.1,1.03138]
[1741977893508,2.41826,1939.2,1939.1,1.03138]
[1741977894408,1.3869,1939.2,1939.1,1.03138]
[1741977894613,0.00773914,1939.3,1939.2,1.03133]
[1741977895011,1.03900914,1939.3,1939.2,1.03133]
[1741977895412,2.42590914,1939.3,1939.2,1.03133]
[1741977895607,1.39463914,1939.3,1939.2,1.03133]
[1741977896419,0.00773914,1939.3,1939.2,1.03133]
[1741977896915,4.6089,1939.4,1939.3,1.03127]
[1741977896916,2.97783826,1939.4,1939.3,1.03127]
[1741977897115,1.03118,1939.5,1939.4,1.03122]
[1741977897908,1.4011,1939.6,1939.3,5.35259]
[1741977898114,0.00773914,1939.6,1939.4,8.201]
[1741977898314,1.03884914,1939.6,1939.5,2.45433]
[1741977899618,0.00773914,1939.6,1939.5,2.45433]
[1741977901312,1.03884914,1939.6,1939.5,1.4232]
[1741977901509,1.03117,1939.5,1939.4,9.2058]
[1741977901714,2.38257,1939.5,1939.4,5.998]
[1741977903023,1.03127,1939.3,1939.2,1.4321]
[1741977903223,1.03127,1939.3,1939.2,2.46343]
[1741977903617,1.3918,1939.4,1939.3,1.03127]
[1741977903812,2.42302,1939.4,1939.3,1.3209]
[1741977905122,2.42302,1939.4,1939.3,2.35217]
[1741977905421,2.42302,1939.4,1939.3,1.3209]
[1741977906015,1.3918,1939.4,1939.3,2.35217]
[1741977906324,2.42302,1939.4,1939.3,2.35217]
[1741977906518,1.3918,1939.4,1939.3,2.35217]
[1741977907023,1.3918,1939.4,1939.3,1.3209]
[1741977907024,2.42302,1939.4,1939.3,1.3209]
[1741977907227,2.42302,1939.4,1939.3,2.35217]
[1741977907516,1.3918,1939.4,1939.3,2.35217]
[1741977908016,2.34249,1939.5,1939.4,1.03122]
[1741977908226,1.3113,1939.5,1939.4,2.45302]
[1741977909831,0.00773914,1939.6,1939.5,1.03117]
[1741977910125,0.00773914,1939.6,1939.5,3.85767]
[1741977910725,1.42643914,1939.6,1939.5,3.85767]
[1741977911528,2.45754914,1939.6,1939.5,3.85767]
[1741977911826,2.45754914,1939.6,1939.5,2.1255]
[1741977912420,4.63423914,1939.6,1939.3,5.29624]
[1741977912619,2.48437,1939.5,1939.4,2.46762]
[1741977912814,2.48437,1939.5,1939.4,1.4364]
[1741977913222,2.48437,1939.5,1939.4,2.46762]
[1741977913223,1.4532,1939.5,1939.4,2.46762]
[1741977913620,1.4532,1939.5,1939.4,1.03122]
[1741977914022,1.4532,1939.5,1939.4,2.46762]
[1741977915729,2.48437,1939.5,1939.4,1.4364]
[1741977917030,1.4532,1939.5,1939.4,1.03122]
[1741977917230,1.03122,1939.4,1939.3,2.40203]
[1741977917427,1.4532,1939.5,1939.4,1.03122]
[1741977917731,1.4532,1939.5,1939.4,2.40202]
[1741977918322,0.00773914,1939.6,1939.5,1.03117]
[1741977918523,1.43443914,1939.6,1939.5,2.40197]
[1741977919330,2.46554914,1939.6,1939.5,2.40197]
[1741977919728,2.46554914,1939.6,1939.5,1.3708]
[1741977920939,2.46554914,1939.6,1939.5,2.40197]
[1741977921137,1.43443914,1939.6,1939.5,2.40197]
[1741977922832,2.46554914,1939.6,1939.5,2.40197]
[1741977923131,1.43443914,1939.6,1939.5,2.40197]
[1741977926334,2.46554914,1939.6,1939.5,2.40197]
[1741977926832,1.43443914,1939.6,1939.5,2.40197]
[1741977928132,1.43443914,1939.6,1939.5,5.96497]
[1741977930140,1.43443914,1939.6,1939.5,9.17277]
[1741977930442,1.43443914,1939.6,1939.5,5.96497]
[1741977932435,0.00773914,1939.6,1939.5,5.96497]
[1741977936035,1.45343914,1939.6,1939.5,5.96497]
[1741977938037,0.00773914,1939.6,1939.5,9.17277]
[1741977939641,1.33823914,1939.6,1939.5,9.17277]
[1741977940237,1.33823914,1939.6,1939.5,5.96497]
[1741977940841,2.36934914,1939.6,1939.5,2.40197]
[1741977941242,1.33823914,1939.6,1939.5,2.40197]
[1741977941837,2.36934914,1939.6,1939.5,2.40197]
[1741977942248,1.33823914,1939.6,1939.5,2.40197]
[1741977942449,2.36934914,1939.6,1939.5,2.40197]
[1741977942845,1.33823914,1939.6,1939.5,2.40197]
[1741977943045,2.36934914,1939.6,1939.5,2.40197]
[1741977945753,2.57793,1939.5,1939.2,0.6971]
[1741977945962,1.03143,1939.0,1938.9,31.8138]
[1741977946258,1.03143,1939.0,1938.9,1.3692]
[1741977946451,1.03149,1938.9,1938.8,0.7034]
[1741977946651,1.03149,1938.9,1938.8,2.0726]
[1741977946955,1.03149,1938.9,1938.8,0.7034]
[1741977947157,2.39919,1938.9,1938.8,0.7034]
[1741977948054,1.03165,1938.6,1938.5,0.00773914]
[1741977948264,4.23945,1938.6,1938.5,0.00773914]
[1741977948956,5.58955,1938.6,1938.5,0.00773914]
[1741977951052,4.5579,1938.6,1938.5,1.03943914]
[1741977951364,5.58955,1938.6,1938.5,0.00773914]
[1741977953255,2.38175,1938.6,1938.5,0.00773914]
[1741977954362,5.58955,1938.6,1938.5,0.00773914]
[1741977954561,2.38175,1938.6,1938.5,0.00773914]
[1741977954763,5.58955,1938.6,1938.5,0.00773914]
[1741977955462,1.03186,1938.2,1938.1,3.8644]
[1741977956062,1.03185,1938.3,1938.2,1.03185]
[1741977956263,1.03179,1938.4,1938.3,1.0318]
[1741977956565,1.03183,1938.3,1938.2,1.03957914]
[1741977956762,1.03183,1938.3,1938.2,2.42247914]
[1741977956957,1.03183,1938.3,1938.2,1.39063914]
[1741977958162,1.03183,1938.3,1938.2,2.42249914]
[1741977958864,1.03183,1938.3,1938.2,0.00773914]
[1741977959062,2.39813,1938.3,1938.2,0.00773914]
[1741977959261,3.74333,1938.3,1938.2,0.00773914]
[1741977962163,1.3452,1938.3,1938.2,1.03959914]
[1741977962356,1.3452,1938.3,1938.2,1.71559914]
[1741977962566,2.37701,1938.3,1938.2,0.68373914]
[1741977962963,2.37701,1938.3,1938.2,0.00773914]
[1741977963762,6.30481,1938.3,1938.2,0.00773914]
[1741977963966,5.58481,1938.3,1938.2,1.03959914]
[1741977964263,5.58481,1938.3,1938.2,0.00773914]
[1741977964467,5.58481,1938.3,1938.2,1.03959914]
[1741977964665,5.58481,1938.3,1938.2,2.38719914]
[1741977965055,3.21553914,1938.5,1938.2,2.38719914]
[1741977965364,3.21553914,1938.5,1938.4,1.03175]
[1741977965563,4.24723914,1938.5,1938.4,1.03175]
[1741977965961,3.21553914,1938.5,1938.4,2.47665]
[1741977966162,4.24723914,1938.5,1938.4,2.47665]
[1741977966363,1.03943914,1938.5,1938.4,2.47665]
[1741977966867,1.03943914,1938.5,1938.4,1.4449]
[1741977967562,0.00773914,1938.5,1938.3,0.6804]
[1741977967772,2.41985,1938.4,1938.3,1.71221]
[1741977968163,1.03175,1938.4,1938.3,1.71221]
[1741977968467,1.03175,1938.4,1938.3,0.6804]
[1741977968763,1.03181,1938.3,1938.2,1.45263914]
[1741977968971,0.00773914,1938.5,1938.2,2.14743914]
[1741977969169,1.03947914,1938.5,1938.4,1.03175]
[1741977969658,1.03175,1938.4,1938.3,2.37106]
[1741977969859,0.00773914,1938.5,1938.4,1.03175]
[1741977970059,0.00773914,1938.5,1938.4,2.37105]
[1741977970761,0.00773914,1938.5,1938.4,1.3393]
[1741977970762,1.03943914,1938.5,1938.4,1.3393]
[1741977971470,1.03943914,1938.5,1938.4,2.37105]
[1741977971765,0.00773914,1938.5,1938.4,2.37105]
[1741977973968,1.42433914,1938.5,1938.4,2.37105]
[1741977974166,2.45603914,1938.5,1938.4,2.37105]
[1741977974468,2.45603914,1938.5,1938.4,1.3393]
[1741977975372,0.00773914,1938.5,1938.4,2.37105]
[1741977980677,0.00773914,1938.5,1938.4,1.3393]
[1741977980678,1.03943914,1938.5,1938.4,1.3393]
[1741977980878,1.03181,1938.3,1938.2,4.94217914]
[1741977981178,1.0318,1938.4,1938.3,1.03181]
[1741977981373,1.03177,1938.4,1938.3,1.03178]
[1741977981888,2.40108914,1938.5,1938.4,1.03175]
[1741977982077,1.36933914,1938.5,1938.4,1.03175]
[1741977984886,2.40103914,1938.5,1938.4,1.03175]
[1741977985180,1.36933914,1938.5,1938.4,1.03175]
[1741977985480,2.40103914,1938.5,1938.4,1.03175]
[1741977987079,1.36933914,1938.5,1938.4,1.03175]
[1741977988282,1.36933914,1938.5,1938.4,1.74955]
[1741977988985,1.03175,1938.4,1938.3,2.47307]
[1741977989883,2.40105914,1938.5,1938.4,1.03175]
[1741977990184,2.40105914,1938.5,1938.4,1.3191]
[1741977990588,1.03181,1938.3,1938.2,3.91033914]
[1741977990784,1.03181,1938.3,1938.2,0.00773914]
[1741977991081,1.03202,1937.9,1937.8,2.45205]
[1741977991284,1.03202,1937.9,1937.8,3.85097]
[1741977991488,4.5614,1938.1,1937.8,2.8189]
[1741977991684,2.38557,1938.0,1937.9,2.43092]
[1741977991885,2.38557,1938.0,1937.9,1.03202]
[1741977993483,2.38557,1938.0,1937.8,2.45976914]
[1741977993484,1.03202,1937.9,1937.8,2.45976914]
[1741977993788,2.34842,1937.9,1937.8,2.45976914]
[1741977993976,2.34842,1937.9,1937.8,1.42773914]
[1741977994180,2.34842,1937.9,1937.8,0.00773914]
[1741977994382,5.55622,1937.9,1937.8,0.00773914]
[1741977994586,1.03218,1937.6,1937.5,1.3888]
[1741977994891,1.03218,1937.6,1937.5,0.7263]
[1741977995286,1.03229,1937.4,1937.3,4.2245]
[1741977995591,1.03229,1937.4,1937.3,1.3888]
[1741977996189,1.03229,1937.4,1937.3,2.42114]
[1741977996389,2.47389,1937.4,1937.3,2.42114]
[1741977996694,2.47389,1937.4,1937.3,1.3888]
[1741977999490,2.47389,1937.4,1937.3,2.42114]
[1741977999893,1.4416,1937.4,1937.3,2.42114]
[1741978000286,2.47389,1937.4,1937.3,0.7263]
[1741978000492,2.47389,1937.4,1937.3,1.75864]
[1741978000799,2.47389,1937.4,1937.3,0.7263]
[1741978001097,2.47389,1937.4,1937.3,1.03234]
[1741978001484,1.4416,1937.4,1937.3,1.03234]
[1741978001688,2.47389,1937.4,1937.3,1.03234]
[1741978002692,1.4416,1937.4,1937.3,1.03234]
[1741978003195,1.03234,1937.3,1937.2,0.00773914]
[1741978003380,1.75824,1937.3,1937.2,1.04012914]
[1741978003583,0.7259,1937.3,1937.2,1.04012914]
[1741978003789,1.44933914,1937.4,1937.2,0.00773914]
[1741978003983,2.5811,1937.2,1936.6,0.6643]
[1741978004186,3.2078,1937.0,1936.6,1.697]
[1741978004386,1.03266,1936.7,1936.6,1.697]
[1741978004587,1.03261,1936.8,1936.6,1.697]
[1741978004886,2.38224,1936.8,1936.7,1.03266]
[1741978005285,2.38224,1936.8,1936.6,0.6643]
[1741978005593,3.2078,1937.2,1936.8,2.58152]
[1741978005795,1.3431,1937.1,1937.0,1.0325]
[1741978005992,2.37555,1937.1,1937.0,1.0325]
[1741978006895,4.24024,1937.2,1937.1,1.03245]
[1741978007685,4.24024,1937.2,1937.0,1.70306]
[1741978007900,4.24024,1937.2,1937.1,2.0577]
[1741978008892,1.03244,1937.2,1937.1,2.0577]
[1741978009201,2.37547,1937.3,1937.2,1.03239]
[1741978009504,2.37547,1937.3,1937.2,1.3753]
[1741978009998,0.00773914,1937.4,1937.3,1.03234]
[1741978010195,0.00773914,1937.4,1937.3,1.70294]
[1741978010606,1.3108,1937.6,1937.5,1.03223]
[1741978010795,2.34302,1937.6,1937.4,2.40755]
[1741978011004,2.34302,1937.6,1937.5,1.3753]
[1741978011199,1.03228,1937.5,1937.3,5.26592]
[1741978011397,1.75782,1937.6,1937.4,2.40759]
[1741978011597,1.03218,1937.6,1937.5,1.3964]
[1741978011800,1.03218,1937.6,1937.5,2.1175]
[1741978012308,0.00773914,1937.7,1937.6,1.03218]
[1741978012598,0.00773914,1937.7,1937.6,3.13958]
[1741978012803,3.9334,1938.1,1937.9,1.03201]
[1741978013102,4.23976,1938.1,1938.0,1.3964]
[1741978013689,1.03196,1938.1,1938.0,1.3964]
[1741978015215,0.00773914,1938.2,1938.1,1.03191]
[1741978015513,1.03959914,1938.2,1938.0,2.42832]
[1741978015813,0.00773914,1938.2,1938.1,2.34081]
[1741978016016,0.00773914,1938.2,1938.1,1.03191]
[1741978016806,0.00773914,1938.2,1938.0,2.34083]
[1741978017006,1.03960914,1938.2,1938.0,1.3089]
[1741978017212,1.03960914,1938.2,1938.1,1.3089]
[1741978018612,0.00773914,1938.2,1938.1,1.3089]
[1741978018814,1.03959914,1938.2,1938.1,1.3089]
[1741978021909,0.00773914,1938.2,1938.1,2.34081]
[1741978022110,0.00773914,1938.2,1938.1,1.3089]
[1741978022313,1.03959914,1938.2,1938.1,1.3089]
[1741978022818,1.03959914,1938.2,1938.1,2.34081]
[1741978023114,1.03959914,1938.2,1938.1,1.3089]
[1741978023518,0.00773914,1938.2,1937.9,1.3896]
[1741978023702,1.03195,1938.1,1938.0,1.3259]
[1741978024107,1.03197,1938.0,1937.9,1.3896]
[1741978024410,1.03197,1938.0,1937.9,2.7155]
[1741978024715,3.2078,1938.1,1937.9,2.7155]
[1741978025009,1.03197,1938.0,1937.9,2.7155]
[1741978025219,3.9343,1938.1,1937.9,2.42158]
[1741978025220,4.23975,1938.1,1937.9,2.42158]
[1741978025410,1.03197,1938.0,1937.9,2.42158]
[1741978025715,1.03197,1938.0,1937.9,1.3896]
[1741978026109,3.2078,1938.1,1937.9,1.3896]
[1741978026308,0.00773914,1938.2,1937.9,4.9506]
[1741978026613,1.03197,1938.0,1937.9,1.3896]
[1741978027411,1.03197,1938.0,1937.9,0.6823]
[1741978027809,2.39387,1938.0,1937.9,0.6823]
[1741978028917,5.60167,1938.0,1937.9,0.6823]
[1741978029118,6.32557,1938.0,1937.9,0.6823]
[1741978029815,1.03202,1937.9,1937.8,0.6666]
[1741978030011,1.03213,1937.7,1937.6,0.7256]
[1741978030612,1.03223,1937.5,1937.4,0.6665]
[1741978030813,1.03223,1937.5,1937.4,1.3921]
[1741978031511,2.36813,1937.5,1937.4,1.3921]
[1741978032215,2.36813,1937.5,1937.4,2.42439]
[1741978032421,1.03229,1937.4,1937.3,0.00773914]
[1741978032723,2.36819,1937.4,1937.3,1.04007914]
[1741978033019,1.03229,1937.4,1937.3,1.04007914]
[1741978033221,1.4454,1937.6,1937.3,0.00773914]
[1741978033415,1.03229,1937.4,1937.3,1.04003914]
[1741978033621,1.03227,1937.5,1937.4,1.03228]
[1741978034214,1.03229,1937.4,1937.3,0.00773914]
[1741978034415,1.03227,1937.5,1937.3,1.04003914]
[1741978034810,1.03229,1937.4,1937.3,1.04003914]
[1741978035019,2.47769,1937.4,1937.3,1.04003914]
[1741978035523,2.47769,1937.4,1937.3,1.04007914]
[1741978035914,2.47769,1937.4,1937.3,0.00773914]
[1741978037018,2.47769,1937.4,1937.3,1.04007914]
[1741978037318,2.47769,1937.4,1937.3,2.39727914]
[1741978038930,2.47769,1937.4,1937.3,1.36493914]
[1741978039124,1.4454,1937.4,1937.3,1.36493914]
[1741978039319,2.47769,1937.4,1937.3,2.39727914]
[1741978040029,2.47769,1937.4,1937.3,1.36493914]
[1741978040332,2.47769,1937.4,1937.3,2.39727914]
[1741978040522,1.4454,1937.4,1937.3,2.39727914]
[1741978041434,2.47769,1937.4,1937.3,2.39727914]
[1741978041832,3.2078,1937.6,1937.4,1.03224]
[1741978042019,4.23998,1937.6,1937.5,2.48543]
[1741978042527,3.2078,1937.6,1937.5,2.48543]
[1741978042723,1.03218,1937.6,1937.5,2.48543]
[1741978042928,1.03214,1937.7,1937.6,1.03215]
[1741978043124,2.47594,1937.7,1937.6,2.1262]
[1741978043324,2.47594,1937.7,1937.6,2.7929]
[1741978045128,2.47594,1937.7,1937.6,3.82508]
[1741978045330,2.47594,1937.7,1937.6,2.7929]
[1741978046437,1.4438,1937.7,1937.6,3.82508]
[1741978046635,4.23985,1937.9,1937.8,1.03207]
[1741978047435,1.03207,1937.8,1937.7,2.43738]
[1741978047833,1.03207,1937.8,1937.7,1.4053]
[1741978048022,2.37417,1937.8,1937.7,1.4053]
[1741978049634,2.37417,1937.8,1937.7,2.43743]
[1741978050932,3.2078,1937.9,1937.8,1.03207]
[1741978051235,4.23983,1937.9,1937.8,1.3842]
[1741978051446,5.64603,1937.9,1937.8,1.3842]
[1741978052037,7.006,1938.0,1937.9,1.03202]
[1741978052236,7.006,1938.0,1937.9,1.73482]
[1741978052237,7.00597,1938.0,1937.9,1.73482]
[1741978052536,2.43817,1938.0,1937.9,1.73482]
[1741978052738,2.43817,1938.0,1937.9,0.7028]
[1741978053137,1.03961914,1938.2,1938.1,1.03191]
[1741978053340,1.03194,1938.1,1938.0,0.7263]
[1741978053642,1.03194,1938.1,1938.0,2.0897]
[1741978053941,0.00773914,1938.2,1938.0,2.0897]
[1741978054142,1.03963914,1938.2,1938.1,1.3634]
[1741978054438,2.47033914,1938.2,1938.1,1.3634]
[1741978054746,0.00773914,1938.2,1938.1,2.39531]
[1741978055040,1.03959914,1938.2,1938.1,2.39531]
[1741978055239,0.00773914,1938.2,1938.1,2.39531]
[1741978055631,1.03959914,1938.2,1938.1,2.39531]
[1741978056036,2.47029914,1938.2,1938.1,1.3634]
[1741978057136,0.00773914,1938.2,1938.1,2.39531]
[1741978058434,1.03959914,1938.2,1938.1,1.3634]
[1741978058641,2.45149914,1938.2,1938.1,1.3634]
[1741978062839,1.41963914,1938.2,1937.5,3.2078]
[1741978063041,1.03207,1937.8,1937.7,0.7232]
[1741978063450,1.03207,1937.8,1937.7,2.0733]
[1741978063840,2.44247,1937.8,1937.7,3.10543]
[1741978064746,2.44247,1937.8,1937.7,2.0733]
[1741978067748,1.03213,1937.7,1937.6,0.6885]
[1741978067946,2.40463,1937.7,1937.6,1.3117]
[1741978068949,1.3725,1937.7,1937.6,2.34388]
[1741978069148,1.03213,1937.7,1937.6,1.3117]
[1741978069342,2.40461,1937.8,1937.7,1.03213]
[1741978069553,1.03211,1937.8,1937.7,1.03213]
[1741978069753,1.3779,1937.9,1937.7,1.03212]
[1741978070056,2.40992,1937.9,1937.8,2.0093]
[1741978071444,2.40992,1937.9,1937.8,3.04137]
[1741978072155,2.40992,1937.9,1937.8,2.0093]
[1741978072854,2.40992,1937.9,1937.8,3.04137]
[1741978073454,1.3779,1937.9,1937.8,3.04137]
[1741978073651,1.03197,1938.0,1937.9,1.03202]
[1741978073857,1.03197,1938.0,1937.9,1.9965]
[1741978074052,1.3597,1938.1,1937.9,1.9965]
[1741978074250,1.3597,1938.1,1938.0,2.36127]
[1741978074450,2.39161,1938.1,1938.0,2.36127]
[1741978075350,1.3597,1938.1,1938.0,2.36127]
[1741978075551,0.00773914,1938.2,1938.1,1.03191]
[1741978075753,0.00773914,1938.2,1938.1,1.69491]
[1741978077052,1.03959914,1938.2,1938.1,0.663]
[1741978077251,2.39729914,1938.2,1938.1,1.69491]
[1741978077657,0.00773914,1938.2,1938.1,1.69491]
[1741978079960,0.00773914,1938.2,1938.1,2.0856541]
[1741978080463,0.00773914,1938.2,1938.1,1.69491]
[1741978081150,1.03191,1938.1,1938.0,1.3293]
[1741978081559,1.03197,1938.0,1937.9,0.6672]
[1741978081859,1.03202,1937.9,1937.8,1.3431]
[1741978082256,1.3688,1938.0,1937.8,2.37514]
[1741978082455,1.03202,1937.9,1937.8,1.3431]
[1741978082654,1.03204,1937.9,1937.7,1.03211]
[1741978082863,1.3688,1937.8,1937.7,1.03211]
[1741978083555,1.032,1938.0,1937.9,1.03202]
[1741978083857,1.03202,1937.9,1937.8,1.03205]
[1741978084457,2.4008,1938.0,1937.8,1.03205]
[1741978084863,2.4008,1938.0,1937.9,1.75882]
[1741978085062,2.4008,1938.0,1937.9,0.7268]
[1741978085763,1.3688,1938.0,1937.6,3.556]
[1741978085958,2.37884,1937.9,1937.8,1.03207]
[1741978086162,1.03213,1937.7,1937.6,5.31496]
[1741978086557,1.3468,1937.8,1937.6,5.31496]
[1741978086558,2.37891,1937.8,1937.7,1.03213]
[1741978086764,1.03205,1937.9,1937.8,1.03207]
[1741978087167,1.03202,1937.9,1937.6,4.2828]
[1741978087360,1.03202,1937.9,1937.8,1.03207]
[1741978087557,2.37881,1938.0,1937.9,1.03202]
[1741978088066,4.23971,1938.1,1938.0,1.03197]
[1741978088361,2.39141,1938.1,1937.7,5.78812]
[1741978088558,2.39148,1938.0,1937.7,3.2078]
[1741978088762,2.39148,1938.0,1937.9,1.03199]
[1741978089154,1.3595,1938.0,1937.9,1.03199]
[1741978089759,0.00773914,1938.2,1938.1,1.03191]
[1741978089959,1.03959914,1938.2,1938.0,1.71713]
[1741978090157,1.03959914,1938.2,1938.1,1.03191]
[1741978090362,0.00773914,1938.2,1938.0,0.6852]
[1741978090665,1.03961914,1938.2,1938.1,1.03191]
[1741978090868,1.03963914,1938.2,1938.0,1.71713]
[1741978091061,1.4495,1938.1,1938.0,1.71713]
[1741978091261,2.48141,1938.1,1938.0,0.6852]
[1741978092962,1.4495,1938.1,1937.7,10.58609]
[1741978093161,1.03207,1937.8,1937.7,4.2153]
[1741978093471,1.03207,1937.8,1937.7,0.6593]
[1741978093863,1.03207,1937.8,1937.7,1.69143]
[1741978094063,1.4495,1937.9,1937.7,1.69143]
[1741978094064,2.48156,1937.9,1937.7,1.69143]
[1741978094271,1.03207,1937.8,1937.7,1.69143]
[1741978094470,1.4447,1937.8,1937.7,1.69143]
[1741978094969,1.03206,1937.9,1937.8,1.03207]
[1741978095264,1.03207,1937.8,1937.7,1.69139]
[1741978095466,1.03218,1937.6,1937.5,1.03218]
[1741978095664,1.03218,1937.6,1937.5,1.69148]
[1741978095971,1.03216,1937.7,1937.6,1.03218]
[1741978096363,1.03216,1937.7,1937.5,0.6593]
[1741978096663,1.4447,1937.6,1937.5,1.69153]
[1741978097158,3.8706,1937.9,1937.5,0.6593]
[1741978097364,3.2078,1938.5,1938.1,1.03191]
[1741978097869,1.03181,1938.3,1938.1,1.03191]
[1741978098065,1.40613914,1938.2,1938.1,1.03191]
[1741978099165,1.40613914,1938.2,1938.1,2.40571]
[1741978099560,0.00773914,1938.2,1938.1,5.61351]
[1741978100370,1.03959914,1938.2,1938.1,1.3738]
[1741978100771,2.45179914,1938.2,1938.1,1.3738]
[1741978101474,1.41993914,1938.2,1938.1,2.40571]
[1741978101865,0.00773914,1938.2,1938.1,2.40571]
[1741978102269,1.03959914,1938.2,1938.1,1.3738]
[1741978102475,0.00773914,1938.2,1938.1,2.40571]
[1741978103678,3.2078,1938.8,1938.1,13.0796]
[1741978103978,1.3235,1938.7,1938.3,3.2078]
[1741978104277,2.35511,1938.7,1938.5,1.03167]
[1741978104568,2.35511,1938.7,1938.6,1.451]
[1741978104768,1.03161,1938.7,1938.6,1.451]
[1741978105168,0.00773914,1938.8,1938.6,1.451]
[1741978106075,1.03930914,1938.8,1938.6,2.48262]
[1741978106274,1.03930914,1938.8,1938.7,1.3094]
[1741978109374,1.03927914,1938.8,1938.7,1.4117]
[1741978109778,1.03927914,1938.8,1938.7,2.44329]
[1741978110164,0.00773914,1938.8,1938.7,2.44329]
[1741978110370,1.03927914,1938.8,1938.7,2.44329]
[1741978110576,0.00773914,1938.8,1938.7,2.44329]
[1741978111078,1.03927914,1938.8,1938.7,2.44329]
[1741978111277,0.00773914,1938.8,1938.7,2.44329]
[1741978115177,0.00773914,1938.8,1938.7,1.4117]
[1741978115369,4.24707914,1938.8,1938.7,1.4117]
[1741978115685,1.03165,1938.6,1938.5,1.70299914]
[1741978115991,1.03165,1938.6,1938.5,1.31703914]
[1741978116184,1.03165,1938.6,1938.5,0.00773914]
[1741978116371,1.68875,1938.6,1938.5,0.00773914]
[1741978116575,1.03165,1938.6,1938.5,0.00773914]
[1741978116775,1.03165,1938.6,1938.5,3.04592914]
[1741978117481,1.75312,1938.7,1938.6,1.03165]
[1741978117780,1.75312,1938.7,1938.6,2.34095]
[1741978118384,1.75312,1938.7,1938.6,1.3093]
[1741978118779,3.18672,1938.7,1938.6,2.34095]
[1741978119174,1.4336,1938.7,1938.6,2.34095]
[1741978121277,1.4336,1938.7,1938.6,1.3093]
[1741978121278,2.46519,1938.7,1938.6,1.3093]
[1741978121483,2.46519,1938.7,1938.6,2.34095]
[1741978121686,1.4336,1938.7,1938.6,2.34095]
[1741978123887,2.46519,1938.7,1938.6,2.34095]
[1741978124088,1.4336,1938.7,1938.6,2.34095]
[1741978125484,2.46519,1938.7,1938.6,2.34095]
[1741978125879,1.4336,1938.7,1938.6,2.34095]
[1741978126385,2.46519,1938.7,1938.6,2.34095]
[1741978127187,1.4336,1938.7,1938.6,2.34095]
[1741978128897,2.46519,1938.7,1938.6,2.34095]
[1741978129894,5.67299,1938.7,1938.6,1.3093]
[1741978130793,5.67299,1938.7,1938.6,2.34095]
[1741978131088,5.67299,1938.7,1938.6,1.3093]
[1741978132292,1.03165,1938.6,1938.5,0.00773914]
[1741978132491,3.11745,1938.6,1938.5,0.00773914]
[1741978132888,10.5598,1938.6,1937.8,3.2078]
[1741978133083,1.03201,1938.0,1937.9,2.7097]
[1741978133294,1.03201,1938.0,1937.9,2.0188]
[1741978133482,3.03861,1938.0,1937.9,2.0188]
[1741978133884,3.03861,1938.0,1937.9,1.3292]
[1741978134192,2.58017,1937.9,1937.4,1.03225]
[1741978134392,1.03218,1937.6,1937.5,1.438]
[1741978134696,1.03218,1937.6,1937.5,1.44573914]
[1741978135096,1.03218,1937.6,1937.5,2.47796914]
[1741978135788,1.03218,1937.6,1937.5,1.44573914]
[1741978136590,1.03218,1937.6,1937.5,2.47796914]
[1741978136889,1.03218,1937.6,1937.5,1.44573914]
[1741978140295,1.03218,1937.6,1937.5,2.47796914]
[1741978140694,1.03218,1937.6,1937.5,1.44573914]
[1741978141993,1.03218,1937.6,1937.5,2.47796914]
[1741978142199,0.00773914,1937.7,1937.6,1.03218]
[1741978142393,1.3319,1938.0,1937.9,1.03202]
[1741978142594,1.03197,1938.0,1937.9,1.03202]
[1741978142897,1.03197,1938.0,1937.8,3.04804]